fUSD/lending_fUSD_20240606
["ID","MTS","AMOUNT","RATE_DAILY","PERIOD"]
[328694214,1717716638534,-159.82,0.00021319,2]
[328694215,1717716638545,-159.82,0.0002133,2]
[328694216,1717716638555,-159.82,0.0002134,2]
[328694217,1717716638565,-159.82,0.00021351,2]
[328694218,1717716638574,-159.82,0.00021362,2]
[328694219,1717716638584,-159.82,0.00021372,2]
[328694220,1717716638593,-159.82,0.00021383,2]
[328694221,1717716638603,-159.82,0.00021394,2]
[328694222,1717716638613,-159.82,0.00021404,2]
[328694223,1717716638622,-159.82,0.00021415,2]
[328694224,1717716638633,-487.21,0.00021505,2]
[328694225,1717716638643,-193.03,0.00021918,2]
[328694226,1717716638653,-250.0,0.00021918,2]
[328694227,1717716638663,-196.59,0.00021918,2]
[328694228,1717716638672,-790.03320351,0.00022,2]
[328694229,1717716638682,-1000.0,0.00022057,2]
[328694230,1717716638692,-639.03,0.00022136,2]
[328694231,1717716638701,-167.0,0.0002215,2]
[328694232,1717716638712,-1000.0,0.0002227,2]
[328694233,1717716638722,-1000.0,0.0002227,2]
[328694234,1717716638731,-1000.0,0.0002227,2]
[328694235,1717716638741,-1000.0,0.0002227,2]
[328694236,1717716638751,-1000.0,0.0002227,2]
[328694238,1717716638761,-1000.0,0.0002227,2]
[328694240,1717716638770,-1000.0,0.0002227,2]
[328694242,1717716638780,-1000.0,0.0002227,2]
[328694244,1717716638790,-665.48682467,0.0002227,2]
[328694246,1717716638802,-334.51317533,0.0002227,2]
[328694248,1717716638812,-1000.0,0.0002227,2]
[328694250,1717716638821,-265.25842413,0.0002227,2]
[328694252,1717716638833,-734.74157587,0.0002227,2]
[328694254,1717716638843,-1000.0,0.0002227,2]
[328694256,1717716638852,-267.0,0.0002227,2]
[328694258,1717716638861,-300.0,0.00022384,2]
[328694260,1717716638871,-2807.32,0.00022446,2]
[328694262,1717716638881,-487.21,0.0002258,2]
[328694264,1717716638890,-155.59394756,0.00023082,2]
[328694266,1717716638900,-141.6866818,0.00023171,3]
[328694268,1717716638911,-178.3933182,0.00023171,3]
[328694270,1717716638920,-201.32924951,0.0002318,2]
[328694272,1717716638930,-2010.8372874,0.00023181,2]
[328694274,1717716638942,-4962.52051354,0.00023181,2]
[328694280,1717716638985,-3730.36434643,0.00023181,2]
[328694282,1717716638996,-8449.0,0.00023181,2]
[328694284,1717716639008,-3912.81499996,0.00023181,2]
[328694586,1717716642899,-500.0,0.0002318,2]
[328694587,1717716642909,-500.0,0.0002318,2]
[328694588,1717716642919,-465.01323652,0.0002318,2]
[328694589,1717716642929,-500.0,0.0002318,2]
[328694590,1717716642938,-500.0,0.0002318,2]
[328694591,1717716642948,-500.0,0.0002318,2]
[328694592,1717716642957,-415.54551882,0.0002318,2]
[328694593,1717716642967,-500.0,0.0002318,2]
[328694594,1717716642977,-500.0,0.0002318,2]
[328694595,1717716642987,-500.0,0.0002318,2]
[328694596,1717716642997,-280.55129917,0.0002318,2]
[328694597,1717716643006,-48360.03845267,0.00023181,2]
[328694598,1717716643018,-245000.0,0.00023281,2]
[328694599,1717716643028,-872.83,0.00023288,2]
[328694600,1717716643038,-417.06,0.00023288,2]
[328694601,1717716643049,-417.06,0.00023288,2]
[328694602,1717716643060,-872.83,0.00023288,2]
[328694603,1717716643070,-872.83,0.00023288,2]
[328694604,1717716643080,-417.06,0.00023288,2]
[328694606,1717716643090,-417.06,0.00023288,2]
[328694608,1717716643100,-872.83,0.00023288,2]
[328694609,1717716643110,-1511.29,0.00023288,2]
[328694611,1717716643119,-417.06,0.00023288,2]
[328694612,1717716643129,-417.06,0.00023288,2]
[328694613,1717716643138,-150.0,0.00023364,2]
[328694614,1717716643148,-150.53471,0.00023364,2]
[328694616,1717716643157,-500.0,0.00023381,2]
[328694617,1717716643168,-39296.9015,0.00023381,2]
[328694619,1717716643177,-100000.0,0.00023381,2]
[328694621,1717716643187,-162.79065026,0.00023382,2]
[328694623,1717716643197,-3903.38636973,0.00023382,2]
[328694625,1717716643206,-353.19981529,0.00023382,2]
[328694627,1717716643216,-1461.10921402,0.00023382,2]
[328694629,1717716643227,-411.82224274,0.00023389,2]
[328694631,1717716643237,-449.35897558,0.00023389,2]
[328694633,1717716643247,-500.0,0.0002341,2]
[328694635,1717716643256,-500.0,0.00023411,2]
[328694638,1717716643266,-200.0,0.00023411,2]
[328694641,1717716643276,-152.17,0.00023471,2]
[328694644,1717716643286,-500.0,0.00023473,2]
[328694647,1717716643296,-513834.79671841,0.00023481,2]
[328694650,1717716643306,-1000.0,0.00023482,2]
[328694653,1717716643316,-1000.0,0.00023482,2]
[328694656,1717716643325,-1000.0,0.00023482,2]
[328694659,1717716643335,-1000.0,0.00023482,2]
[328694662,1717716643345,-1000.0,0.00023482,2]
[328694665,1717716643356,-1000.0,0.00023482,2]
[328694668,1717716643366,-1000.0,0.00023482,2]
[328694672,1717716643376,-1000.0,0.00023482,2]
[328694675,1717716643385,-1000.0,0.00023482,2]
[328694678,1717716643395,-1000.0,0.00023482,2]
[328694681,1717716643405,-1000.0,0.00023482,2]
[328694684,1717716643415,-1000.0,0.00023482,2]
[328694687,1717716643424,-1000.0,0.00023482,2]
[328694690,1717716643434,-1000.0,0.00023482,2]
[328694693,1717716643443,-1000.0,0.00023482,2]
[328694696,1717716643453,-1000.0,0.00023482,2]
[328694699,1717716643462,-1000.0,0.00023482,2]
[328694701,1717716643472,-1000.0,0.00023482,2]
[328694703,1717716643482,-1000.0,0.00023482,2]
[328694705,1717716643492,-1000.0,0.00023482,2]
[328694706,1717716643501,-1000.0,0.00023482,2]
[328694707,1717716643511,-1000.0,0.00023482,2]
[328694708,1717716643521,-1000.0,0.00023482,2]
[328694709,1717716643531,-1000.0,0.00023482,2]
[328694710,1717716643540,-1000.0,0.00023482,2]
[328694711,1717716643550,-1000.0,0.00023482,2]
[328694712,1717716643559,-1000.0,0.00023482,2]
[328694713,1717716643569,-1000.0,0.00023482,2]
[328694714,1717716643581,-207.3151,0.00023482,2]
[328694715,1717716643591,-500.0,0.00023482,2]
[328694716,1717716643600,-500.0,0.00023482,2]
[328694717,1717716643610,-500.0,0.00023482,2]
[328694718,1717716643621,-500.0,0.00023482,2]
[328694719,1717716643630,-523.3146,0.00023482,2]
[328694720,1717716643640,-1913.382886,0.000235,2]
[328694721,1717716643650,-1022.90774952,0.0002357,2]
[328694722,1717716643660,-751.47317544,0.00023599,2]
[328694723,1717716643670,-20181.17997331,0.000236,2]
[328694724,1717716643679,-488.0,0.000236,6]
[328694725,1717716643689,-345.0,0.000236,2]
[328694726,1717716643699,-150.0,0.000236,3]
[328694727,1717716643709,-11808.6987028,0.00023618,2]
[328694728,1717716643719,-1829.6645773,0.00023618,2]
[328694729,1717716643729,-22081.9513895,0.00023634,2]
[328694730,1717716643739,-487.21,0.00023656,2]
[328694731,1717716643748,-254.567,0.00023738,2]
[328694732,1717716643758,-213.0,0.00023738,2]
[328694733,1717716643768,-161.0,0.00023738,2]
[328694734,1717716643778,-162.677,0.00023738,2]
[328694735,1717716643787,-264.0,0.00023738,2]
[328694736,1717716643797,-226.077,0.00023738,2]
[328694737,1717716643807,-152.729,0.00023738,2]
[328694738,1717716643816,-259.685,0.00023738,2]
[328694739,1717716643826,-195.154,0.00023738,2]
[328694740,1717716643836,-808.0,0.00023743,2]
[328694741,1717716643846,-545.0,0.00023743,2]
[328694742,1717716643856,-290.0,0.00023743,2]
[328694743,1717716643866,-359.279,0.00023743,2]
[328694744,1717716643876,-5151.0,0.00023743,2]
[328694745,1717716643885,-38025.0,0.00023743,2]
[328694746,1717716643895,-1467.0,0.00023743,2]
[328694747,1717716643905,-5778.0,0.00023743,2]
[328694748,1717716643914,-1116.521,0.00023743,2]
[328694749,1717716643924,-1649.0,0.00023743,2]
[328694750,1717716643934,-3903.38636964,0.00023975,2]
[328694751,1717716643944,-167.0,0.00023978,2]
[328694752,1717716643954,-150.0,0.000241,4]
[328694753,1717716643964,-180.0,0.0002423,2]
[328694754,1717716643973,-150.0,0.00024247,2]
[328694755,1717716643983,-300.0,0.00024247,2]
[328694756,1717716643992,-150.0,0.00024247,2]
[328694757,1717716644002,-530.66,0.00024247,2]
[328694758,1717716644013,-150.0,0.00024247,2]
[328694759,1717716644026,-150.0,0.00024247,2]
[328694760,1717716644036,-525.95,0.00024247,2]
[328694761,1717716644045,-163.91,0.00024247,2]
[328694762,1717716644055,-421.9,0.00024247,2]
[328694763,1717716644066,-345.15,0.00024247,2]
[328694764,1717716644075,-150.0,0.00024247,2]
[328694765,1717716644084,-150.0,0.00024247,2]
[328694766,1717716644095,-150.0,0.00024247,2]
[328694767,1717716644106,-525.95,0.00024247,2]
[328694768,1717716644115,-150.0,0.00024247,2]
[328694769,1717716644124,-150.0,0.00024247,2]
[328694770,1717716644134,-150.0,0.00024247,2]
[328694771,1717716644145,-525.95,0.00024247,2]
[328694772,1717716644155,-150.0,0.00024247,2]
[328694773,1717716644164,-150.0,0.00024247,2]
[328694774,1717716644174,-150.0,0.00024247,2]
[328694775,1717716644184,-525.95,0.00024247,2]
[328694776,1717716644194,-150.0,0.00024247,2]
[328694777,1717716644204,-150.0,0.00024247,2]
[328694778,1717716644214,-150.0,0.00024247,2]
[328694779,1717716644224,-525.95,0.00024247,2]
[328694780,1717716644234,-150.0,0.00024247,2]
[328694781,1717716644243,-525.95,0.00024247,2]
[328694782,1717716644253,-150.0,0.00024247,2]
[328694783,1717716644262,-525.95,0.00024247,2]
[328694784,1717716644271,-150.0,0.00024247,2]
[328694785,1717716644281,-525.95,0.00024247,2]
[328694786,1717716644290,-525.95,0.00024247,2]
[328694787,1717716644299,-150.0,0.00024247,2]
[328694788,1717716644309,-160.66,0.00024384,2]
[328694789,1717716644318,-162.63,0.00024384,2]
[328694790,1717716644328,-152.25,0.00024384,2]
[328694791,1717716644338,-414.04,0.00024384,2]
[328694792,1717716644348,-169.24,0.00024384,2]
[328694793,1717716644357,-639.03,0.000244,2]
[328694794,1717716644367,-156.28126389,0.000245,2]
[328694795,1717716644376,-1000.0,0.00024508,2]
[328694796,1717716644386,-3903.38636964,0.00024567,2]
[328694797,1717716644395,-500.0,0.00024569,2]
[328694798,1717716644405,-157.722,0.00024598,2]
[328694799,1717716644414,-277.43,0.00024598,2]
[328694800,1717716644424,-225.261,0.00024598,2]
[328694801,1717716644434,-236.773,0.00024598,2]
[328694802,1717716644444,-182.936,0.00024598,2]
[328694803,1717716644454,-150.0,0.000246,4]
[328694804,1717716644464,-243.2,0.00024658,4]
[328694805,1717716644473,-8480.52,0.00024658,4]
[328694806,1717716644483,-487.21,0.00024731,2]
[328694807,1717716644493,-9864.93807426,0.00024798,2]
[328694808,1717716644503,-9864.93807421,0.00024798,2]
[328694809,1717716644513,-9864.93807421,0.00024798,2]
[328694810,1717716644523,-151.0,0.00024798,7]
[328694811,1717716644533,-151.0,0.00024798,7]
[328694812,1717716644543,-151.0,0.00024798,7]
[328694813,1717716644553,-151.0,0.00024798,7]
[328694814,1717716644562,-151.0,0.00024798,7]
[328694815,1717716644572,-151.0,0.00024798,7]
[328694816,1717716644582,-151.0,0.00024798,7]
[328694817,1717716644591,-151.0,0.00024798,7]
[328694818,1717716644600,-151.0,0.00024798,7]
[328694819,1717716644609,-151.0,0.00024798,7]
[328694820,1717716644619,-153.037748,0.00024798,7]
[328694821,1717716644628,-151.0,0.00024798,7]
[328694822,1717716644637,-185.898797,0.00024798,7]
[328694823,1717716644646,-234.639951,0.00024798,7]
[328694824,1717716644656,-151.0,0.00024798,7]
[328694825,1717716644666,-151.0,0.00024798,7]
[328694826,1717716644675,-151.0,0.00024798,7]
[328694827,1717716644684,-151.0,0.00024798,7]
[328694828,1717716644693,-151.0,0.00024798,7]
[328694829,1717716644703,-151.0,0.00024798,7]
[328694830,1717716644713,-151.0,0.00024798,7]
[328694831,1717716644722,-151.0,0.00024798,7]
[328694832,1717716644732,-151.0,0.00024798,7]
[328694833,1717716644741,-436.130451,0.00024798,7]
[328694834,1717716644751,-436.130451,0.00024798,7]
[328694835,1717716644760,-152.170032,0.00024798,7]
[328694836,1717716644769,-151.0,0.00024798,7]
[328694837,1717716644779,-151.0,0.00024798,7]
[328694838,1717716644788,-151.0,0.00024798,7]
[328694839,1717716644798,-151.0,0.00024798,7]
[328694840,1717716644807,-151.0,0.00024798,7]
[328694841,1717716644817,-151.0,0.00024798,7]
[328694842,1717716644827,-152.076194,0.00024798,7]
[328694843,1717716644836,-151.0,0.00024798,7]
[328694844,1717716644846,-266.169416,0.00024798,7]
[328694845,1717716644855,-151.0,0.00024798,7]
[328694846,1717716644865,-266.169416,0.00024798,7]
[328694847,1717716644874,-151.0,0.00024798,7]
[328694848,1717716644883,-500.0,0.00024843,2]
[328694849,1717716644893,-6792.60300481,0.000249,2]
[328694850,1717716644903,-3000.0,0.000249,2]
[328694851,1717716644912,-1291.0,0.0002497,15]
[328694852,1717716644921,-785.0,0.0002497,15]
[328694853,1717716644931,-1461.109214,0.00024977,2]
[328694854,1717716644940,-1291.0,0.0002498,15]
[328694855,1717716644949,-785.0,0.0002498,15]
[328694856,1717716644960,-1291.0,0.0002499,15]
[328694857,1717716644969,-785.0,0.0002499,15]
[328694858,1717716644979,-152.17,0.0002499,2]
[328694859,1717716644988,-155.0,0.00024998,2]
[328694860,1717716644997,-150.0,0.00024999,10]
[328694861,1717716645007,-150.0,0.00024999,10]
[328694862,1717716645019,-150.0,0.00024999,10]
[328694863,1717716645029,-150.0,0.00024999,10]
[328694864,1717716645039,-150.0,0.00024999,10]
[328694865,1717716645049,-150.0,0.00024999,10]
[328694866,1717716645059,-150.0,0.00024999,10]
[328694867,1717716645069,-10005.0,0.00025,2]
[328694868,1717716645078,-155.57152469,0.00025,2]
[328694869,1717716645088,-325.78398581,0.00025,2]
[328694870,1717716645100,-155.0,0.00025,2]
[328694871,1717716645110,-155.0,0.00025,2]
[328694872,1717716645120,-225.04645167,0.00025,2]
[328694873,1717716645130,-1276.07841121,0.00025,2]
[328694874,1717716645139,-158.98454596,0.00025,2]
[328694875,1717716645149,-155.0,0.00025,2]
[328694876,1717716645158,-325.89141873,0.00025,2]
[328694877,1717716645167,-924070.09428721,0.00025,2]
[328694878,1717716645177,-151.0,0.00025,7]
[328694879,1717716645187,-151.0,0.00025,7]
[328694880,1717716645197,-151.0,0.00025,7]
[328694881,1717716645206,-1250.0,0.00025,2]
[328694882,1717716645216,-151.0,0.00025,7]
[328694883,1717716645227,-151.0,0.00025,7]
[328694884,1717716645236,-151.0,0.00025,7]
[328694885,1717716645245,-151.0,0.00025,7]
[328694886,1717716645255,-154.020224,0.00025,7]
[328694887,1717716645264,-151.0,0.00025,7]
[328694888,1717716645274,-151.0,0.00025,7]
[328694889,1717716645284,-151.0,0.00025,7]
[328694890,1717716645293,-151.0,0.00025,7]
[328694891,1717716645303,-152.712151,0.00025,7]
[328694892,1717716645313,-153.977743,0.00025,7]
[328694893,1717716645322,-151.0,0.00025,7]
[328694894,1717716645332,-225.501072,0.00025,7]
[328694895,1717716645342,-225.501072,0.00025,7]
[328694896,1717716645352,-151.0,0.00025,7]
[328694897,1717716645362,-151.0,0.00025,7]
[328694898,1717716645372,-151.0,0.00025,7]
[328694899,1717716645381,-151.0,0.00025,7]
[328694900,1717716645390,-151.0,0.00025,7]
[328694901,1717716645400,-152.57399,0.00025,7]
[328694902,1717716645410,-153.834915,0.00025,7]
[328694903,1717716645419,-151.0,0.00025,7]
[328694904,1717716645429,-151.0,0.00025,7]
[328694905,1717716645438,-151.0,0.00025,7]
[328694906,1717716645447,-151.0,0.00025,7]
[328694907,1717716645457,-151.0,0.00025,7]
[328694908,1717716645467,-154.903516,0.00025,7]
[328694909,1717716645476,-151.0,0.00025,7]
[328694910,1717716645486,-151.0,0.00025,7]
[328694911,1717716645495,-153.582614,0.00025,7]
[328694912,1717716645504,-151.0,0.00025,7]
[328694913,1717716645514,-151.0,0.00025,7]
[328694914,1717716645523,-255.291817,0.00025,7]
[328694915,1717716645532,-255.291817,0.00025,7]
[328694916,1717716645662,-151.0,0.00025,7]
[328694917,1717716645673,-151.0,0.00025,7]
[328694918,1717716645683,-152.619764,0.00025,7]
[328694919,1717716645694,-151.0,0.00025,7]
[328694920,1717716645704,-151.0,0.00025,7]
[328694921,1717716645713,-151.0,0.00025,7]
[328694922,1717716645724,-151.0,0.00025,7]
[328694923,1717716645733,-151.0,0.00025,7]
[328694924,1717716645743,-157.497477,0.00025,7]
[328694925,1717716645752,-151.0,0.00025,7]
[328694926,1717716645762,-151.0,0.00025,7]
[328694927,1717716645771,-151.0,0.00025,7]
[328694928,1717716645782,-151.0,0.00025,7]
[328694929,1717716645792,-151.0,0.00025,7]
[328694930,1717716645801,-151.0,0.00025,7]
[328694931,1717716645811,-151.0,0.00025,7]
[328694932,1717716645820,-151.0,0.00025,7]
[328694933,1717716645830,-300.33947,0.00025,7]
[328694934,1717716645838,-156.863865,0.00025,7]
[328694935,1717716645848,-151.0,0.00025,7]
[328694936,1717716645857,-151.0,0.00025,7]
[328694937,1717716645866,-436.130451,0.00025,7]
[328694938,1717716645876,-436.130451,0.00025,7]
[328694939,1717716645885,-151.0,0.00025,7]
[328694940,1717716645895,-151.0,0.00025,7]
[328694941,1717716645905,-151.0,0.00025,7]
[328694942,1717716645914,-151.0,0.00025,7]
[328694943,1717716645923,-170.47323,0.00025,7]
[328694944,1717716645933,-266.169416,0.00025,7]
[328694945,1717716645943,-151.0,0.00025,7]
[328694946,1717716645954,-266.169416,0.00025,7]
[328694947,1717716645965,-151.0,0.00025,7]
[328694949,1717716645975,-353.19981527,0.00025012,2]
[328694951,1717716645984,-150.5,0.00025075,15]
[328694953,1717716645998,-150.5,0.00025085,15]
[328694955,1717716646007,-231.36,0.00025095,15]
[328694957,1717716646020,-150.5,0.00025095,15]
[328694959,1717716646030,-150.0,0.000251,4]
[328694961,1717716646039,-150.0,0.00025104,10]
[328694962,1717716646048,-150.0,0.00025104,10]
[328694963,1717716646059,-150.0,0.00025104,10]
[328694964,1717716646068,-150.0,0.00025104,10]
[328694965,1717716646078,-150.0,0.00025104,10]
[328694966,1717716646087,-172.384447,0.00025105,7]
[328694967,1717716646098,-151.0,0.00025105,7]
[328694968,1717716646109,-151.0,0.00025105,7]
[328694969,1717716646118,-151.0,0.00025105,7]
[328694970,1717716646127,-151.0,0.00025105,7]
[328694971,1717716646137,-3903.38636964,0.0002516,2]
[328694972,1717716646146,-2807.32,0.00025185,2]
[328694973,1717716646156,-1000.0,0.00025205,2]
[328694974,1717716646165,-150.0,0.00025422,10]
[328694975,1717716646175,-150.0,0.00025422,10]
[328694976,1717716646185,-150.0,0.00025422,10]
[328694977,1717716646194,-150.0,0.00025422,10]
[328694978,1717716646203,-150.0,0.00025422,10]
[328694979,1717716646215,-150.0,0.00025422,10]
[328694980,1717716646225,-303.68745957,0.00025423,7]
[328694981,1717716646234,-47004.1890882,0.00025423,7]
[328694982,1717716646244,-9864.93807421,0.00025425,2]
[328694983,1717716646253,-150.0,0.000256,4]
[328694984,1717716646263,-369.23754265,0.00025665,2]
[328694985,1717716646273,-3903.38636964,0.00025752,2]
[328694986,1717716646282,-1175.09306933,0.00025773,2]
[328694987,1717716646292,-487.21,0.00025806,2]
[328694988,1717716646302,-167.0,0.00025806,2]
[328694989,1717716646311,-191.11,0.0002589,2]
[328694990,1717716646321,-1336.39751,0.00025925,2]
[328694991,1717716646330,-500.0,0.00025939,2]
[328694992,1717716646340,-500.0,0.00025939,2]
[328694993,1717716646350,-500.0,0.00025939,2]
[328694994,1717716646359,-500.0,0.00025939,2]
[328694995,1717716646369,-150.0,0.000261,4]
[328694996,1717716646379,-150.0,0.00026164,2]
[328694997,1717716646390,-150.0,0.00026164,2]
[328694998,1717716646399,-150.0,0.00026164,2]
[328694999,1717716646409,-150.0,0.00026164,2]
[328695000,1717716646419,-150.0,0.00026164,2]
[328695001,1717716646428,-302.8,0.00026164,2]
[328695002,1717716646437,-9864.93807421,0.00026171,2]
[328695003,1717716646447,-14235.52,0.00026301,2]
[328695004,1717716646457,-3903.38636964,0.00026345,2]
[328695005,1717716646467,-500.0,0.00026487,2]
[328695006,1717716646476,-500.0,0.00026487,2]
[328695007,1717716646485,-1461.109214,0.00026573,2]
[328695008,1717716646495,-2055.20344569,0.000266,2]
[328695009,1717716646505,-150.0,0.000266,5]
[328695010,1717716646515,-422.3,0.00026603,2]
[328695011,1717716646525,-150.0,0.00026603,2]
[328695012,1717716646534,-150.0,0.00026603,2]
[328695013,1717716646544,-353.13,0.00026603,2]
[328695014,1717716646554,-422.3,0.00026603,2]
[328695015,1717716646563,-150.0,0.00026603,2]
[328695016,1717716646572,-353.13,0.00026603,2]
[328695017,1717716646592,-150.0,0.00026603,2]
[328695018,1717716646604,-150.0,0.00026603,2]
[328695019,1717716646614,-150.0,0.00026603,2]
[328695020,1717716646625,-150.0,0.00026603,2]
[328695021,1717716646635,-353.19981527,0.00026641,2]
[328695022,1717716646646,-639.03,0.00026664,2]
[328695023,1717716646657,-150.0,0.00026742,10]
[328695024,1717716646667,-267.06365256,0.00026742,10]
[328695025,1717716646677,-545.0,0.00026743,2]
[328695026,1717716646687,-288.0,0.00026743,2]
[328695027,1717716646697,-5137.0,0.00026743,2]
[328695028,1717716646707,-24345.164,0.00026743,2]
[328695029,1717716646719,-5752.0,0.00026743,2]
[328695030,1717716646728,-1626.925,0.00026743,2]
[328695031,1717716646738,-600.0,0.00026847,2]
[328695032,1717716646748,-9864.93807421,0.00026917,2]
[328695033,1717716646759,-151.0,0.00026917,7]
[328695034,1717716646769,-187.993012,0.00026917,7]
[328695035,1717716646779,-151.0,0.00026917,7]
[328695036,1717716646789,-218.869411,0.00026917,7]
[328695037,1717716646800,-151.0,0.00026917,7]
[328695038,1717716646811,-151.0,0.00026917,7]
[328695039,1717716646821,-218.285716,0.00026917,7]
[328695040,1717716646831,-151.0,0.00026917,7]
[328695041,1717716646842,-151.0,0.00026917,7]
[328695042,1717716646852,-151.0,0.00026917,7]
[328695043,1717716646863,-151.0,0.00026917,7]
[328695044,1717716646877,-151.0,0.00026917,7]
[328695045,1717716646889,-196.862253,0.00026917,7]
[328695046,1717716646899,-436.130451,0.00026917,7]
[328695047,1717716646909,-436.130451,0.00026917,7]
[328695048,1717716646919,-151.0,0.00026917,7]
[328695049,1717716646929,-151.0,0.00026917,7]
[328695050,1717716646939,-151.0,0.00026917,7]
[328695052,1717716646949,-151.0,0.00026917,7]
[328695053,1717716646960,-266.169416,0.00026917,7]
[328695055,1717716646970,-151.0,0.00026917,7]
[328695057,1717716646981,-266.169416,0.00026917,7]
[328695060,1717716646991,-266.398731,0.00026917,7]
[328695063,1717716647001,-3903.38636964,0.00026937,2]
[328695066,1717716647011,-1000.0,0.00026958,2]
[328695069,1717716647024,-155.66659876,0.00026998,2]
[328695070,1717716647034,-146900.81862916,0.00027,13]
[328695071,1717716647044,-4027.10358314,0.00027,2]
[328695072,1717716647054,-1300.0,0.00027,2]
[328695073,1717716647066,-200.0,0.00027,2]
[328695074,1717716647075,-192.53797,0.00027003,7]
[328695075,1717716647085,-151.0,0.00027003,7]
[328695076,1717716647097,-273.214532,0.00027003,7]
[328695077,1717716647106,-151.0,0.00027003,7]
[328695078,1717716647116,-151.0,0.00027003,7]
[328695079,1717716647125,-225.501072,0.00027003,7]
[328695080,1717716647136,-225.501072,0.00027003,7]
[328695081,1717716647145,-500.0,0.00027035,2]
[328695082,1717716647155,-500.0,0.00027035,2]
[328695083,1717716647165,-500.0,0.00027035,2]
[328695084,1717716647175,-500.0,0.00027035,2]
[328695085,1717716647185,-150.0,0.000271,5]
[328695086,1717716647194,-582.49,0.0002737,2]
[328695087,1717716647204,-806.82910337,0.0002739,2]
[328695088,1717716647214,-179.44,0.00027397,2]
[328695089,1717716647223,-151.0,0.00027397,7]
[328695090,1717716647238,-151.0,0.00027397,7]
[328695091,1717716647248,-151.0,0.00027397,7]
[328695092,1717716647258,-277.19,0.00027397,10]
[328695093,1717716647268,-230.99,0.00027397,10]
[328695094,1717716647278,-192.49,0.00027397,10]
[328695095,1717716647288,-163.36,0.000274,2]
[328695096,1717716647300,-960.03,0.00027483,2]
[328695097,1717716647310,-3903.38636964,0.0002753,2]
[328695098,1717716647320,-500.0,0.00027583,2]
[328695099,1717716647330,-500.0,0.00027583,2]
[328695100,1717716647340,-151.0,0.00027583,7]
[328695101,1717716647351,-151.0,0.00027583,7]
[328695102,1717716647361,-150.0,0.00027598,2]
[328695103,1717716647371,-158.243465,0.00027598,7]
[328695104,1717716647381,-150.0,0.000276,5]
[328695105,1717716647391,-331.410989,0.00027629,2]
[328695106,1717716647401,-180.343853,0.00027629,2]
[328695107,1717716647411,-180.343853,0.00027629,2]
[328695108,1717716647421,-9864.93807421,0.00027663,2]
[328695109,1717716647430,-151.0,0.00027663,7]
[328695110,1717716647441,-151.0,0.00027663,7]
[328695111,1717716647451,-151.0,0.00027663,7]
[328695112,1717716647460,-151.0,0.00027663,7]
[328695113,1717716647471,-436.130451,0.00027663,7]
[328695114,1717716647480,-436.130451,0.00027663,7]
[328695115,1717716647490,-151.0,0.00027663,7]
[328695116,1717716647500,-151.0,0.00027663,7]
[328695117,1717716647510,-151.0,0.00027663,7]